fUST/lending_fUST_20250812
["ID","MTS","AMOUNT","RATE_DAILY","PERIOD"]
[378678427,1754956245944,-463.01317425,0.00019178,2]
[378678429,1754956245953,-460.0,0.00019178,2]
[378678431,1754956245963,-520.98385136,0.00019178,2]
[378678433,1754956245972,-182.90195642,0.00019178,2]
[378678435,1754956245988,-277.09804358,0.00019178,2]
[378678437,1754956245998,-460.0,0.00019178,2]
[378678439,1754956246007,-460.0,0.00019178,2]
[378678443,1754956246018,-500.1,0.00019178,2]
[378678446,1754956246027,-460.0,0.00019178,2]
[378678449,1754956246037,-460.0,0.00019178,2]
[378678452,1754956246046,-460.0,0.00019178,2]
[378678455,1754956246056,-460.0,0.00019178,2]
[378678457,1754956246065,-460.0,0.00019178,2]
[378678459,1754956246074,-460.0,0.00019178,2]
[378678461,1754956246084,-460.0,0.00019178,2]
[378678463,1754956246093,-460.0,0.00019178,2]
[378678465,1754956246103,-460.0,0.00019178,2]
[378678467,1754956246113,-923.86834433,0.00019178,2]
[378678517,1754956246593,-96.49165567,0.00019178,2]
[378678519,1754956246609,-460.0,0.00019178,2]
[378678521,1754956246621,-460.0,0.00019178,2]
[378678523,1754956246631,-161.06366032,0.00019178,2]
[378678527,1754956246655,-298.93633968,0.00019178,2]
[378678529,1754956246664,-460.0,0.00019178,2]
[378678531,1754956246674,-460.0,0.00019178,2]
[378678533,1754956246687,-460.0,0.00019178,2]
[378678535,1754956246696,-460.0,0.00019178,2]
[378678536,1754956246706,-460.0,0.00019178,2]
[378678539,1754956246715,-580.0,0.00019178,2]
[378678541,1754956246726,-276.67366032,0.00019178,2]
[378678544,1754956246749,-183.32633968,0.00019178,2]
[378678546,1754956246758,-389.65302584,0.00019178,2]
[378679474,1754956303550,154.998885,0.00023,30]
[378679475,1754956303858,154.998885,0.00023,30]
[378679476,1754956304178,154.998885,0.00023,30]
[378679477,1754956305765,154.998885,0.00021,20]
[378679478,1754956306054,154.998885,0.00020938,20]
[378679479,1754956306607,24900.0,0.00018396,2]
[378679481,1754956327947,424.767321,0.00013699,2]
[378679491,1754956781581,165.332143,0.00023,30]
[378679493,1754956901976,152.243349,0.00023,30]
[378679494,1754956902275,152.243349,0.00023,30]
[378679501,1754957072063,250.0,0.00018702,2]
[378679511,1754957253099,-155.27214251,0.000189,2]
[378679512,1754957253122,-903.38569832,0.00019068,2]
[378679513,1754957253144,-166.31313099,0.00019077,2]
[378679514,1754957253165,-275.30608065,0.00019078,2]
[378679515,1754957253188,-1315.0,0.00019088,2]
[378679516,1754957253212,-1200.0,0.00019098,2]
[378679517,1754957253235,-1200.0,0.00019099,2]
[378679518,1754957253261,-300.0,0.00019099,2]
[378679519,1754957253282,-42084.10324836,0.000191,2]
[378679520,1754957274891,905.92,0.00030137,120]
[378679525,1754957353387,24900.0,0.00018135,2]
[378679571,1754957432998,-871.46885816,0.00019076,2]
[378679573,1754957433008,-80.20135469,0.00019099,2]
[378679658,1754957438767,-1119.79864531,0.00019099,2]
[378679659,1754957438777,-4198.4871059,0.000191,2]
[378679660,1754957438793,-3616.84777358,0.000191,2]
[378679661,1754957438802,-300.0,0.00019165,2]
[378679662,1754957438811,-173.38,0.00019166,3]
[378679663,1754957438821,-520.19,0.00019166,3]
[378679664,1754957438830,-500.0,0.00019173,2]
[378679665,1754957438840,-500.0,0.00019173,2]
[378679666,1754957438849,-500.0,0.00019173,2]
[378679667,1754957438858,-500.0,0.00019175,2]
[378679668,1754957438868,-500.0,0.00019175,2]
[378679669,1754957438877,-500.0,0.00019175,2]
[378679670,1754957438887,-500.0,0.00019175,2]
[378679671,1754957438896,-255.69805471,0.00019175,2]
[378679672,1754957438906,-500.0,0.00019175,2]
[378679673,1754957438915,-500.0,0.00019175,2]
[378679675,1754957438924,-500.0,0.00019175,2]
[378679677,1754957438934,-500.0,0.00019175,2]
[378679678,1754957438943,-500.0,0.00019175,2]
[378679679,1754957438952,-400.0,0.00019175,2]
[378679680,1754957438961,-460.0,0.00019176,2]
[378679682,1754957438970,-460.0,0.00019176,2]
[378679684,1754957438980,-2447.11,0.00019176,2]
[378679687,1754957438989,-1207.79,0.00019176,2]
[378679688,1754957438998,-460.0,0.00019176,2]
[378679689,1754957439007,-460.0,0.00019176,2]
[378679690,1754957439017,-322516.9508996,0.00019176,7]
[378679691,1754957439026,-460.0,0.00019176,2]
[378679692,1754957439035,-5037.1,0.00019176,2]
[378679693,1754957439045,-460.0,0.00019176,2]
[378679694,1754957439054,-460.0,0.00019176,2]
[378679695,1754957439063,-911.56,0.00019176,2]
[378679696,1754957439073,-460.0,0.00019176,2]
[378679697,1754957439082,-460.0,0.00019176,2]
[378679698,1754957439092,-12671.21867243,0.00019176,7]
[378679699,1754957439101,-460.0,0.00019176,2]
[378679700,1754957439110,-4237.07,0.00019176,2]
[378679701,1754957439119,-690.62,0.00019176,2]
[378679702,1754957439129,-1292.5,0.00019176,2]
[378679703,1754957439138,-794.32,0.00019176,2]
[378679704,1754957439148,-2422.71,0.00019176,2]
[378679705,1754957439157,-460.0,0.00019176,2]
[378679706,1754957439166,-460.0,0.00019176,2]
[378679707,1754957439175,-460.0,0.00019176,2]
[378679708,1754957439185,-1291.66,0.00019176,2]
[378679709,1754957439194,-215.4905783,0.00019176,7]
[378679710,1754957439204,-5922.11,0.00019176,2]
[378679711,1754957439213,-460.0,0.00019176,2]
[378679712,1754957439222,-1007.91,0.00019176,2]
[378679713,1754957439232,-460.0,0.00019176,2]
[378679714,1754957439241,-460.02947924,0.00019176,2]
[378679715,1754957439251,-1439.29,0.00019176,2]
[378679716,1754957439260,-460.0,0.00019176,2]
[378679717,1754957439270,-460.0,0.00019176,2]
[378679718,1754957439279,-635.85,0.00019176,2]
[378679719,1754957439289,-461.69158338,0.00019176,7]
[378679720,1754957439298,-460.0,0.00019176,2]
[378679721,1754957439307,-460.0,0.00019176,2]
[378679722,1754957439316,-460.0,0.00019176,2]
[378679723,1754957439326,-7473.14450209,0.00019177,2]
[378679724,1754957439336,-460.0,0.00019177,2]
[378679725,1754957439345,-460.0,0.00019177,2]
[378679726,1754957439355,-460.0,0.00019177,2]
[378679727,1754957439363,-784.91,0.00019177,2]
[378679728,1754957439373,-460.0,0.00019177,2]
[378679729,1754957439382,-407.73537088,0.00019177,2]
[378679730,1754957439391,-460.0,0.00019177,2]
[378679731,1754957439400,-460.0,0.00019177,2]
[378679732,1754957439409,-3005.17,0.00019177,2]
[378679733,1754957439418,-460.0,0.00019177,2]
[378679734,1754957439427,-460.0,0.00019177,2]
[378679735,1754957439436,-460.0,0.00019177,2]
[378679736,1754957439446,-575.34,0.00019177,2]
[378679737,1754957439455,-799.57,0.00019177,2]
[378679738,1754957439464,-460.0,0.00019177,2]
[378679739,1754957439474,-460.0,0.00019177,2]
[378679740,1754957439483,-460.0,0.00019177,2]
[378679741,1754957439493,-3628.54,0.00019177,2]
[378679742,1754957439502,-460.0,0.00019177,2]
[378679743,1754957439511,-583.37,0.00019177,2]
[378679744,1754957439521,-460.0,0.00019177,2]
[378679745,1754957439530,-460.0,0.00019177,2]
[378679746,1754957439539,-1089.47,0.00019177,2]
[378679747,1754957439549,-460.0,0.00019177,2]
[378679748,1754957439559,-460.0,0.00019177,2]
[378679749,1754957439568,-460.0,0.00019177,2]
[378679750,1754957439577,-460.0,0.00019177,2]
[378679751,1754957439586,-460.0,0.00019177,2]
[378679752,1754957439596,-460.0,0.00019177,2]
[378679753,1754957439605,-460.0,0.00019177,2]
[378679754,1754957439632,-460.0,0.00019177,2]
[378679755,1754957439641,-460.0,0.00019177,2]
[378679756,1754957439650,-460.0,0.00019177,2]
[378679757,1754957439659,-460.0,0.00019177,2]
[378679758,1754957439668,-460.0,0.00019177,2]
[378679759,1754957439678,-460.0,0.00019177,2]
[378679760,1754957439687,-460.0,0.00019177,2]
[378679761,1754957439697,-460.0,0.00019177,2]
[378679762,1754957439707,-460.0,0.00019177,2]
[378679763,1754957439716,-460.0,0.00019177,2]
[378679764,1754957439726,-460.0,0.00019177,2]
[378679765,1754957439734,-460.0,0.00019177,2]
[378679766,1754957439743,-460.0,0.00019177,2]
[378679767,1754957439752,-460.0,0.00019177,2]
[378679768,1754957439761,-460.0,0.00019177,2]
[378679769,1754957439770,-460.0,0.00019177,2]
[378679770,1754957439779,-460.0,0.00019177,2]
[378679771,1754957439789,-460.0,0.00019177,2]
[378679772,1754957439798,-460.0,0.00019177,2]
[378679773,1754957439807,-556.88,0.00019177,2]
[378679774,1754957439816,-460.0,0.00019177,2]
[378679775,1754957439825,-460.0,0.00019177,2]
[378679776,1754957439834,-460.0,0.00019177,2]
[378679777,1754957439843,-460.0,0.00019177,2]
[378679778,1754957439852,-460.0,0.00019177,2]
[378679779,1754957439861,-460.0,0.00019177,2]
[378679780,1754957439870,-460.0,0.00019177,2]
[378679781,1754957439880,-460.0,0.00019177,2]
[378679782,1754957439889,-460.0,0.00019177,2]
[378679783,1754957439898,-460.0,0.00019177,2]
[378679784,1754957439907,-460.0,0.00019177,2]
[378679785,1754957439917,-460.0,0.00019177,2]
[378679786,1754957439926,-460.0,0.00019177,2]
[378679787,1754957439935,-460.0,0.00019177,2]
[378679788,1754957439944,-460.0,0.00019177,2]
[378679789,1754957439953,-460.0,0.00019177,2]
[378679790,1754957439962,-460.0,0.00019177,2]
[378679791,1754957439971,-461.69525378,0.00019177,2]
[378679792,1754957439981,-460.0,0.00019177,2]
[378679793,1754957439990,-460.0,0.00019177,2]
[378679794,1754957439999,-460.0,0.00019177,2]
[378679795,1754957440009,-460.0,0.00019177,2]
[378679796,1754957440018,-952.02,0.00019177,2]
[378679797,1754957440028,-460.0,0.00019177,2]
[378679798,1754957440037,-460.0,0.00019177,2]
[378679799,1754957440046,-460.0,0.00019177,2]
[378679800,1754957440055,-460.0,0.00019177,2]
[378679801,1754957440065,-460.0,0.00019177,2]
[378679802,1754957440074,-305.8984454,0.00019177,2]
[378679803,1754957440083,-460.0,0.00019177,2]
[378679804,1754957440093,-1156.61,0.00019177,2]
[378679805,1754957440102,-978.47,0.00019177,2]
[378679806,1754957440112,-1147.86,0.00019177,2]
[378679807,1754957440122,-464.89380412,0.00019177,2]
[378679808,1754957440131,-460.0,0.00019177,2]
[378679809,1754957440141,-460.0,0.00019177,2]
[378679810,1754957440150,-195.96108979,0.00019177,2]
[378679811,1754957440160,-460.0,0.00019177,2]
[378679812,1754957440169,-492.43620659,0.00019177,2]
[378679813,1754957440178,-460.0,0.00019177,2]
[378679814,1754957440188,-849.5,0.00019177,2]
[378679816,1754957440197,-460.0,0.00019177,2]
[378679818,1754957440208,-460.0,0.00019177,2]
[378679820,1754957440217,-460.0,0.00019177,2]
[378679821,1754957440226,-721.47,0.00019177,2]
[378679822,1754957440235,-752.96,0.00019177,2]
[378679823,1754957440245,-460.0,0.00019177,2]
[378679824,1754957440255,-594.98208201,0.00019177,2]
[378679825,1754957440264,-460.0,0.00019177,2]
[378679826,1754957440274,-460.0,0.00019177,2]
[378679827,1754957440283,-460.0,0.00019177,2]
[378679828,1754957440292,-460.0,0.00019177,2]
[378679829,1754957440302,-460.0,0.00019177,2]
[378679830,1754957440311,-460.0,0.00019177,2]
[378679831,1754957440320,-460.0,0.00019177,2]
[378679832,1754957440329,-460.0,0.00019177,2]
[378679833,1754957440339,-460.0,0.00019177,2]
[378679834,1754957440348,-460.0,0.00019177,2]
[378679835,1754957440358,-460.0,0.00019177,2]
[378679836,1754957440368,-472.0,0.00019177,2]
[378679837,1754957440377,-460.0,0.00019177,2]
[378679838,1754957440386,-460.0,0.00019177,2]
[378679839,1754957440396,-460.0,0.00019177,2]
[378679840,1754957440405,-361.08311554,0.00019177,2]
[378679841,1754957440414,-460.0,0.00019177,2]
[378679842,1754957440423,-460.0,0.00019177,2]
[378679843,1754957440433,-460.0,0.00019177,2]
[378679844,1754957440442,-460.0,0.00019177,2]
[378679845,1754957440451,-310.06418619,0.00019177,2]
[378679846,1754957440460,-1621.74,0.00019177,2]
[378679848,1754957440471,-460.0,0.00019177,2]
[378679849,1754957440481,-966.34,0.00019177,2]
[378679851,1754957440491,-494.8,0.00019177,2]
[378679853,1754957440500,-460.0,0.00019177,2]
[378679855,1754957440510,-460.0,0.00019177,2]
[378679857,1754957440520,-460.0,0.00019177,2]
[378679859,1754957440529,-462.64367269,0.00019177,2]
[378679861,1754957440538,-460.0,0.00019177,2]
[378679863,1754957440549,-664.07,0.00019177,2]
[378679865,1754957440559,-528.82,0.00019177,2]
[378679867,1754957440568,-460.0,0.00019177,2]
[378679868,1754957440578,-460.0,0.00019177,2]
[378679869,1754957440589,-558.99,0.00019177,2]
[378679870,1754957440599,-460.0,0.00019177,2]
[378679871,1754957440608,-460.0,0.00019177,2]
[378679872,1754957440618,-460.0,0.00019177,2]
[378679873,1754957440627,-460.0,0.00019177,2]
[378679874,1754957440638,-460.0,0.00019177,2]
[378679875,1754957440648,-460.0,0.00019177,2]
[378679876,1754957440658,-460.0,0.00019177,2]
[378679877,1754957440667,-460.0,0.00019177,2]
[378679878,1754957440676,-460.0,0.00019177,2]
[378679879,1754957440686,-460.0,0.00019177,2]
[378679880,1754957440695,-460.0,0.00019177,2]
[378679881,1754957440705,-460.0,0.00019177,2]
[378679882,1754957440714,-460.0,0.00019177,2]
[378679883,1754957440723,-460.0,0.00019177,2]
[378679884,1754957440732,-460.0,0.00019177,2]
[378679885,1754957440742,-460.0,0.00019177,2]
[378679886,1754957440751,-460.0,0.00019177,2]
[378679887,1754957440760,-460.0,0.00019177,2]
[378679888,1754957440769,-718.42,0.00019177,2]
[378679889,1754957440778,-460.0,0.00019177,2]
[378679890,1754957440788,-460.0,0.00019177,2]
[378679891,1754957440798,-460.0,0.00019177,2]
[378679892,1754957440807,-460.0,0.00019177,2]
[378679893,1754957440816,-460.0,0.00019177,2]
[378679894,1754957440826,-1039.69,0.00019177,2]
[378679895,1754957440835,-460.0,0.00019177,2]
[378679896,1754957440845,-935.5,0.00019177,2]
[378679897,1754957440854,-460.0,0.00019177,2]
[378679898,1754957440864,-3378.29,0.00019177,2]
[378679899,1754957440873,-460.0,0.00019177,2]
[378679900,1754957440882,-3123.64,0.00019177,2]
[378679901,1754957440892,-460.0,0.00019177,2]
[378679902,1754957440902,-460.0,0.00019177,2]
[378679903,1754957440911,-460.0,0.00019177,2]
[378679904,1754957440921,-460.0,0.00019177,2]
[378679905,1754957440930,-460.0,0.00019177,2]
[378679906,1754957440939,-460.0,0.00019177,2]
[378679907,1754957440950,-460.0,0.00019177,2]
[378679908,1754957440961,-460.0,0.00019177,2]
[378679909,1754957440972,-541.16,0.00019177,2]
[378679910,1754957440981,-460.0,0.00019177,2]
[378679911,1754957440991,-460.0,0.00019177,2]
[378679912,1754957441000,-460.0,0.00019177,2]
[378679913,1754957441010,-460.0,0.00019177,2]
[378679914,1754957441019,-461.60850003,0.00019177,2]
[378679915,1754957441028,-286.84872159,0.00019177,2]
[378679916,1754957441038,-460.0,0.00019177,2]
[378679917,1754957441048,-460.0,0.00019177,2]
[378679918,1754957441058,-460.0,0.00019177,2]
[378679919,1754957441067,-460.0,0.00019177,2]
[378679920,1754957441076,-460.0,0.00019177,2]
[378679921,1754957441086,-460.0,0.00019177,2]
[378679922,1754957441096,-308.88903883,0.00019177,2]
[378679923,1754957441107,-460.0,0.00019177,2]
[378679924,1754957441116,-460.0,0.00019177,2]
[378679925,1754957441126,-804.27,0.00019177,2]
[378679926,1754957441135,-460.0,0.00019177,2]
[378679927,1754957441144,-460.0,0.00019177,2]
[378679928,1754957441154,-460.0,0.00019177,2]
[378679929,1754957441163,-460.0,0.00019177,2]
[378679930,1754957441172,-460.0,0.00019177,2]
[378679931,1754957441181,-460.0,0.00019177,2]
[378679932,1754957441191,-477.37871123,0.00019177,2]
[378679933,1754957441200,-460.0,0.00019177,2]
[378679934,1754957441210,-460.0,0.00019177,2]
[378679935,1754957441222,-460.0,0.00019177,2]
[378679936,1754957441231,-460.0,0.00019177,2]
[378679937,1754957441241,-460.0,0.00019177,2]
[378679938,1754957441251,-460.0,0.00019177,2]
[378679939,1754957441260,-467.5314501,0.00019177,2]
[378679940,1754957441269,-460.0,0.00019177,2]
[378679941,1754957441279,-460.0,0.00019177,2]
[378679942,1754957441288,-1321.65,0.00019177,2]
[378679943,1754957441298,-460.0,0.00019177,2]
[378679944,1754957441307,-460.0,0.00019177,2]
[378679945,1754957441317,-460.0,0.00019177,2]
[378679946,1754957441327,-460.0,0.00019177,2]
[378679947,1754957441336,-460.0,0.00019177,2]
[378679948,1754957441347,-460.0,0.00019177,2]
[378679949,1754957441356,-460.0,0.00019177,2]
[378679950,1754957441366,-1127.59,0.00019177,2]
[378679951,1754957441375,-460.0,0.00019177,2]
[378679952,1754957441385,-460.0,0.00019177,2]
[378679953,1754957441394,-460.0,0.00019177,2]
[378679954,1754957441403,-460.0,0.00019177,2]
[378679955,1754957441413,-460.0,0.00019177,2]
[378679956,1754957441422,-460.0,0.00019177,2]
[378679957,1754957441431,-460.0,0.00019177,2]
[378679958,1754957441441,-538.1,0.00019177,2]
[378679959,1754957441450,-586.22,0.00019177,2]
[378679960,1754957441459,-460.0,0.00019177,2]
[378679961,1754957441468,-460.0,0.00019177,2]
[378679962,1754957441481,-460.0,0.00019177,2]
[378679963,1754957441491,-1230.91,0.00019177,2]
[378679964,1754957441500,-275.8037119,0.00019177,2]
[378679965,1754957441509,-460.0,0.00019177,2]
[378679966,1754957441519,-460.0,0.00019177,2]
[378679967,1754957441528,-460.0,0.00019177,2]
[378679968,1754957441537,-460.0,0.00019177,2]
[378679969,1754957441547,-460.0,0.00019177,2]
[378679970,1754957441557,-460.0,0.00019177,2]
[378679971,1754957441567,-465.37403272,0.00019177,2]
[378679972,1754957441576,-460.0,0.00019177,2]
[378679973,1754957441585,-460.0,0.00019177,2]
[378679974,1754957441597,-460.0,0.00019177,2]
[378679975,1754957441607,-460.0,0.00019177,2]
[378679976,1754957441617,-460.0,0.00019177,2]
[378679977,1754957441626,-460.0,0.00019177,2]
[378679978,1754957441635,-460.0,0.00019177,2]
[378679979,1754957441645,-460.0,0.00019177,2]
[378679980,1754957441654,-460.0,0.00019177,2]
[378679981,1754957441665,-553.71,0.00019177,2]
[378679982,1754957441674,-573.36,0.00019177,2]
[378679983,1754957441684,-921.53,0.00019177,2]
[378679984,1754957441693,-460.0,0.00019177,2]
[378679985,1754957441703,-1617.0,0.00019177,2]
[378679986,1754957441713,-460.0,0.00019177,2]
[378679987,1754957441723,-460.0,0.00019177,2]
[378679988,1754957441732,-460.0,0.00019177,2]
[378679989,1754957441741,-460.0,0.00019177,2]
[378679990,1754957441750,-460.0,0.00019177,2]
[378679991,1754957441760,-460.0,0.00019177,2]
[378679992,1754957441769,-460.0,0.00019177,2]
[378679993,1754957441778,-460.0,0.00019177,2]
[378679994,1754957441788,-669.85,0.00019177,2]
[378679995,1754957441797,-460.0,0.00019177,2]
[378679996,1754957441808,-504.26,0.00019177,2]
[378679997,1754957441818,-460.0,0.00019177,2]
[378679998,1754957441829,-460.0,0.00019177,2]
[378679999,1754957441841,-460.0,0.00019177,2]
[378680000,1754957441850,-865.17,0.00019177,2]
[378680001,1754957441859,-1060.54,0.00019177,2]
[378680002,1754957441868,-460.0,0.00019177,2]
[378680003,1754957441877,-750.5,0.00019177,2]
[378680004,1754957441887,-460.0,0.00019177,2]
[378680005,1754957441896,-1230.55,0.00019177,2]
[378680006,1754957441905,-460.0,0.00019177,2]
[378680007,1754957441914,-1266.5,0.00019177,2]
[378680008,1754957441924,-460.0,0.00019177,2]
[378680009,1754957441933,-460.0,0.00019177,2]
[378680010,1754957441943,-460.0,0.00019177,2]
[378680011,1754957441952,-460.0,0.00019177,2]
[378680012,1754957441961,-460.0,0.00019177,2]
[378680013,1754957442150,-460.0,0.00019177,2]
[378680014,1754957442161,-925.07,0.00019177,2]
[378680015,1754957442170,-461.4929794,0.00019177,2]
[378680016,1754957442180,-460.0,0.00019177,2]
[378680017,1754957442189,-860.76,0.00019177,2]
[378680018,1754957442199,-460.0,0.00019177,2]
[378680019,1754957442209,-460.0,0.00019177,2]
[378680020,1754957442218,-460.0,0.00019177,2]
[378680021,1754957442230,-460.0,0.00019177,2]
[378680022,1754957442239,-192.28659057,0.00019177,2]
[378680023,1754957442249,-460.0,0.00019177,2]
[378680024,1754957442258,-3004.5,0.00019177,2]
[378680025,1754957442268,-460.0,0.00019177,2]
[378680026,1754957442278,-460.0,0.00019177,2]
[378680027,1754957442287,-460.0,0.00019177,2]
[378680028,1754957442297,-460.0,0.00019177,2]
[378680029,1754957442306,-460.0,0.00019177,2]
[378680030,1754957442315,-460.0,0.00019177,2]
[378680031,1754957442325,-460.0,0.00019177,2]
[378680032,1754957442334,-460.0,0.00019177,2]
[378680033,1754957442344,-460.0,0.00019177,2]
[378680034,1754957442353,-1091.35,0.00019177,2]
[378680035,1754957442363,-693.32,0.00019177,2]
[378680036,1754957442372,-849.34,0.00019177,2]
[378680037,1754957442382,-574.2,0.00019177,2]
[378680038,1754957442391,-460.0,0.00019177,2]
[378680039,1754957442411,-460.0,0.00019177,2]
[378680040,1754957442423,-460.0,0.00019177,2]
[378680041,1754957442435,-460.0,0.00019177,2]
[378680042,1754957442446,-460.0,0.00019177,2]
[378680043,1754957442456,-460.0,0.00019177,2]
[378680044,1754957442467,-11724.11,0.00019177,2]
[378680045,1754957442482,-460.0,0.00019177,2]
[378680046,1754957442493,-659.53,0.00019177,2]
[378680047,1754957442503,-460.0,0.00019177,2]
[378680048,1754957442515,-1060.2,0.00019177,2]
[378680049,1754957442527,-684.42,0.00019177,2]
[378680050,1754957442538,-460.0,0.00019177,2]
[378680051,1754957442549,-460.0,0.00019177,2]
[378680052,1754957442560,-460.0,0.00019177,2]
[378680053,1754957442570,-460.0,0.00019177,2]
[378680054,1754957442580,-460.0,0.00019177,2]
[378680055,1754957442590,-460.0,0.00019177,2]
[378680056,1754957442600,-460.0,0.00019177,2]
[378680057,1754957442610,-460.0,0.00019177,2]
[378680058,1754957442621,-460.0,0.00019177,2]
[378680059,1754957442631,-460.0,0.00019177,2]
[378680060,1754957442641,-460.0,0.00019177,2]
[378680061,1754957442651,-460.0,0.00019177,2]
[378680062,1754957442662,-460.0,0.00019177,2]
[378680063,1754957442672,-533.45,0.00019177,2]
[378680064,1754957442683,-460.0,0.00019177,2]
[378680065,1754957442693,-460.0,0.00019177,2]
[378680066,1754957442703,-460.0,0.00019177,2]
[378680067,1754957442713,-460.0,0.00019177,2]
[378680068,1754957442723,-460.0,0.00019177,2]
[378680069,1754957442733,-460.0,0.00019177,2]
[378680070,1754957442743,-460.0,0.00019177,2]
[378680071,1754957442753,-619.81,0.00019177,2]
[378680072,1754957442763,-460.0,0.00019177,2]
[378680073,1754957442772,-483.51,0.00019177,2]
[378680074,1754957442783,-460.0,0.00019177,2]
[378680075,1754957442792,-460.0,0.00019177,2]
[378680076,1754957442802,-2131.5,0.00019177,2]
[378680077,1754957442811,-460.0,0.00019177,2]
[378680078,1754957442822,-460.0,0.00019177,2]
[378680079,1754957442832,-464.83461222,0.00019177,2]
[378680080,1754957442843,-460.0,0.00019177,2]
[378680081,1754957442853,-673.13,0.00019177,2]
[378680082,1754957442863,-460.0,0.00019177,2]
[378680083,1754957442874,-1567.25,0.00019177,2]
[378680084,1754957442885,-242.40701572,0.00019177,2]
[378680085,1754957442895,-460.0,0.00019177,2]
[378680086,1754957442905,-1619.71,0.00019177,2]
[378680087,1754957442915,-460.0,0.00019177,2]
[378680088,1754957442925,-509.99994878,0.00019177,2]
[378680089,1754957442934,-460.0,0.00019177,2]
[378680090,1754957442944,-460.0,0.00019177,2]
[378680091,1754957442953,-460.0,0.00019177,2]
[378680092,1754957442963,-460.0,0.00019177,2]
[378680093,1754957442972,-2103.23,0.00019177,2]
[378680094,1754957442982,-460.0,0.00019177,2]
[378680095,1754957442991,-460.0,0.00019177,2]
[378680096,1754957443001,-2723.57,0.00019177,2]
[378680097,1754957443011,-460.0,0.00019177,2]
[378680098,1754957443025,-893.88,0.00019177,2]
[378680099,1754957443035,-1211.61,0.00019177,2]
[378680100,1754957443045,-460.0,0.00019177,2]
[378680101,1754957443055,-460.0,0.00019177,2]
[378680102,1754957443067,-200.0,0.00019177,10]
[378680103,1754957443077,-200.0,0.00019177,10]
[378680104,1754957443087,-200.0,0.00019177,10]
[378680105,1754957443098,-200.0,0.00019177,10]
[378680106,1754957443108,-200.0,0.00019177,10]
[378680107,1754957443118,-200.0,0.00019177,10]
[378680108,1754957443128,-200.0,0.00019177,10]
[378680109,1754957443139,-206.995846,0.00019177,10]
[378680110,1754957443149,-460.0,0.00019177,2]
[378680111,1754957443159,-460.0,0.00019177,2]
[378680112,1754957443169,-460.0,0.00019177,2]
[378680113,1754957443179,-460.0,0.00019177,2]
[378680114,1754957443190,-460.0,0.00019177,2]
[378680115,1754957443200,-556.65,0.00019177,2]
[378680116,1754957443210,-460.0,0.00019177,2]
[378680117,1754957443220,-460.0,0.00019177,2]
[378680118,1754957443230,-1724.81,0.00019177,2]
[378680119,1754957443240,-566.52359849,0.00019177,2]
[378680120,1754957443250,-460.0,0.00019177,2]